bitfinex/quotes_SOLUSD_20260102
["timestamp","ask_amount","ask_price","bid_price","bid_amount"]
[1767379225848,5.67905232,131.26,131.23,8.41754273]
[1767379226038,0.67647269,131.27,131.23,8.41754273]
[1767379226233,5.67860505,131.26,131.23,8.41754273]
[1767379226423,0.67647269,131.27,131.23,8.41754273]
[1767379226627,5.67795376,131.26,131.23,8.41754273]
[1767379226847,0.67647269,131.27,131.23,8.41754273]
[1767379227028,5.67795376,131.26,131.23,8.41754273]
[1767379227229,3.11172583,131.27,131.23,8.41754273]
[1767379227429,5.67753881,131.26,131.23,8.41754273]
[1767379227630,3.11172583,131.27,131.23,8.41754273]
[1767379227836,5.67699215,131.26,131.23,8.41754273]
[1767379228037,3.11172583,131.27,131.23,8.41754273]
[1767379228239,8.79215878,131.26,131.23,0.79760629]
[1767379228456,3.11526809,131.26,131.23,0.79760629]
[1767379228668,2.43525314,131.25,131.23,0.1]
[1767379228850,0.68001495,131.23,131.21,7.62118014]
[1767379229165,3.11526809,131.23,131.21,7.62118014]
[1767379229365,3.14699825,131.24,131.22,7.62078951]
[1767379229668,2.43525314,131.24,131.22,8.30764714]
[1767379231060,8.32984157,131.27,131.23,0.68685763]
[1767379231369,10.78271588,131.26,131.23,0.68685763]
[1767379231600,3.14699825,131.27,131.24,0.68685763]
[1767379231746,5.67435403,131.26,131.24,0.68685763]
[1767379231948,3.14699825,131.27,131.24,0.68685763]
[1767379232151,5.67435105,131.26,131.24,0.68685763]
[1767379232353,3.14699825,131.27,131.24,0.68685763]
[1767379232662,5.67419769,131.26,131.24,0.68685763]
[1767379232854,3.14699825,131.27,131.24,0.68685763]
[1767379233177,5.67419918,131.26,131.24,0.68685763]
[1767379233375,3.14699825,131.27,131.24,0.68685763]
[1767379233569,5.6745141,131.26,131.24,0.68685763]
[1767379233879,2.43525314,131.26,131.24,0.68685763]
[1767379234067,2.43525314,131.26,131.23,7.61986397]
[1767379234068,2.43525314,131.25,131.23,8.3067216]
[1767379235546,3.14699825,131.25,131.22,8.30734421]
[1767379235875,2.43525314,131.23,131.22,0.68685763]
[1767379236088,2.43525314,131.24,131.22,0.68685763]
[1767379236862,3.14699825,131.24,131.21,7.62107031]
[1767379237167,2.43525314,131.23,131.21,7.62107031]
[1767379238658,2.43525314,131.23,131.21,0.68685763]
[1767379239863,3.14699825,131.23,131.2,8.30880884]
[1767379240963,3.14699825,131.22,131.19,8.30911994]
[1767379241763,2.43525314,131.22,131.2,7.62194438]
[1767379241961,2.43525314,131.22,131.2,8.30880201]
[1767379242261,0.71174511,131.21,131.17,0.1]
[1767379242464,0.71174511,131.18,131.17,0.1]
[1767379242670,2.43525314,131.18,131.17,0.1]
[1767379243287,2.43525314,131.18,131.16,0.1]
[1767379243481,0.71174511,131.19,131.16,0.78685763]
[1767379243785,2.43525314,131.18,131.16,0.78685763]
[1767379244092,2.43525314,131.18,131.16,0.1]
[1767379246163,3.14699825,131.18,131.16,0.1]
[1767379246377,0.70892198,131.16,131.12,0.68685763]
[1767379246675,2.43525314,131.15,131.12,8.31320546]
[1767379247458,2.43525314,131.15,131.13,7.62601904]
[1767379247658,2.43525314,131.14,131.1,8.31412978]
[1767379247884,13.92,131.17,131.11,0.68685763]
[1767379248177,2.43525314,131.14,131.11,0.68685763]
[1767379248382,2.43525314,131.13,131.1,8.31412978]
[1767379248559,2.43525314,131.12,131.09,8.41512643]
[1767379248954,2.43525314,131.1,131.09,0.1]
[1767379249177,3.10643496,131.11,131.09,0.1]
[1767379249858,2.43525314,131.12,131.09,0.78685763]
[1767379250279,2.43525314,131.12,131.09,8.41511693]
[1767379250667,0.71174511,131.13,131.09,8.41511693]
[1767379250871,2.43525314,131.12,131.09,8.41511693]
[1767379251071,3.10643496,131.12,131.09,8.41511693]
[1767379251485,0.67158339,131.1,131.09,0.1]
[1767379251680,3.10683653,131.1,131.07,0.68685763]
[1767379251856,2.43525314,131.09,131.07,0.68685763]
[1767379252293,0.71094192,131.09,131.06,8.31695071]
[1767379252889,3.14619506,131.09,131.06,8.31695071]
[1767379253893,3.14580541,131.07,131.04,8.31802054]
[1767379254145,2.43525314,131.07,131.04,8.31802054]
[1767379254392,2.43525314,131.08,131.05,0.68685763]
[1767379254979,2.43525314,131.07,131.05,0.68685763]
[1767379255181,2.43525314,131.07,131.05,8.31749676]
[1767379255366,2.43525314,131.07,131.05,0.68685763]
[1767379257492,3.14659262,131.07,131.04,0.68685763]
[1767379257657,0.71174511,131.09,131.04,0.68685763]
[1767379257883,3.14699825,131.09,131.04,0.68685763]
[1767379258086,0.67118182,131.08,131.04,0.68685763]
[1767379258386,3.10643496,131.08,131.04,0.68685763]
[1767379258580,0.71133948,131.07,131.04,0.68685763]
[1767379258817,0.71133948,131.07,131.04,8.3175982]
[1767379260916,0.69758516,131.09,131.05,0.71327]
[1767379261118,2.43525314,131.08,131.05,0.71327]
[1767379261322,0.68520017,131.08,131.05,0.71327]
[1767379261617,2.43525314,131.09,131.05,0.71327]
[1767379262320,3.1328383,131.1,131.06,8.34336308]
[1767379262523,3.1328383,131.11,131.07,0.71327]
[1767379262891,2.43525314,131.1,131.07,0.71327]
[1767379263116,2.43525314,131.08,131.05,22.26369612]
[1767379263315,0.69746131,131.09,131.05,22.26369612]
[1767379263316,3.13271445,131.09,131.06,0.71327]
[1767379263521,2.43525314,131.07,131.05,13.92]
[1767379263706,3.13259307,131.07,131.03,8.44476475]
[1767379263906,2.43525314,131.06,131.03,8.44476475]
[1767379264097,2.43525314,131.06,131.04,7.63124519]
[1767379264287,3.13259307,131.07,131.04,8.34451519]
[1767379264487,3.1328383,131.09,131.05,0.71327]
[1767379264703,2.43525314,131.08,131.05,0.71327]
[1767379264907,3.12045331,131.08,131.05,0.71327]
[1767379265103,0.68520017,131.08,131.05,0.71327]
[1767379265303,3.12045331,131.08,131.05,0.71327]
[1767379265517,3.1328383,131.11,131.06,0.71327]
[1767379266538,3.1328383,131.11,131.07,8.34278094]
[1767379266742,3.1328383,131.11,131.08,0.71327]
[1767379266914,3.1328383,131.12,131.08,0.71327]
[1767379267630,2.43525314,131.11,131.08,0.71327]
[1767379267822,0.69758516,131.12,131.08,0.71327]
[1767379268023,2.43525314,131.11,131.08,0.71327]
[1767379268728,2.43525314,131.11,131.08,8.34206443]
[1767379269033,3.12045331,131.11,131.08,8.34218826]
[1767379269407,2.43525314,131.11,131.08,8.34218826]
[1767379269611,0.69758516,131.12,131.08,8.34218826]
[1767379269911,2.43525314,131.11,131.08,8.34218826]
[1767379270434,121.46160304,131.16,131.08,8.34218826]
[1767379270435,0.69758516,131.14,131.09,0.71327]
[1767379270632,3.1328383,131.15,131.1,0.71327]
[1767379270823,3.1328383,131.15,131.09,2.43525314]
[1767379270824,5.60586714,131.14,131.12,0.71327]
[1767379271129,3.1328383,131.15,131.11,8.34045328]
[1767379271435,8.72629541,131.14,131.11,8.34045328]
[1767379271640,3.12045331,131.14,131.11,8.34045328]
[1767379272242,0.69758516,131.15,131.11,8.34045328]
[1767379272539,5.60644658,131.14,131.12,0.71327]
[1767379272723,3.12045331,131.16,131.12,8.33949373]
[1767379272927,8.73974611,131.15,131.12,8.33949373]
[1767379273130,3.12057592,131.14,131.11,0.71327]
[1767379273340,2.43525314,131.14,131.11,0.71327]
[1767379273517,3.1328383,131.15,131.11,0.71327]
[1767379273837,2.43525314,131.13,131.1,8.34092349]
[1767379274040,3.12045331,131.14,131.1,8.34092349]
[1767379274434,5.61006353,131.13,131.1,8.34092349]
[1767379274628,3.12045331,131.14,131.1,8.34092349]
[1767379274830,5.61106596,131.13,131.1,8.34092349]
[1767379275037,0.68520017,131.14,131.1,8.34092349]
[1767379275239,5.61105158,131.13,131.1,8.34092349]
[1767379275426,3.12045331,131.14,131.1,8.34092349]
[1767379275626,5.61354729,131.13,131.1,8.34092349]
[1767379275838,3.12045331,131.14,131.1,8.34092349]
[1767379276144,5.61409665,131.13,131.1,8.34092349]
[1767379276444,0.68520017,131.14,131.1,8.34092349]
[1767379276664,5.61575336,131.13,131.1,8.34092349]
[1767379276942,0.68520017,131.14,131.1,8.34092349]
[1767379277140,6.3126234,131.13,131.1,8.34092349]
[1767379277331,0.69746131,131.13,131.1,8.34092349]
[1767379277641,0.69746131,131.13,131.1,0.71327]
[1767379277839,5.61756926,131.12,131.1,0.71327]
[1767379278146,0.69746131,131.13,131.1,0.71327]
[1767379278340,5.61768731,131.12,131.1,0.71327]
[1767379278546,0.69746131,131.13,131.1,0.71327]
[1767379278850,5.62068219,131.12,131.1,0.71327]
[1767379279021,0.69746131,131.13,131.1,8.34097837]
[1767379279222,5.62066927,131.12,131.1,8.34097837]
[1767379279425,0.69746131,131.13,131.1,8.34097837]
[1767379279624,5.62397796,131.12,131.1,8.34097837]
[1767379279948,0.69746131,131.13,131.1,0.71327]
[1767379280152,5.62372357,131.12,131.1,0.71327]
[1767379280445,5.62742089,131.11,131.1,0.71327]
[1767379280843,5.62742089,131.11,131.09,7.62810822]
[1767379280844,5.62742089,131.11,131.09,8.34137822]
[1767379281042,3.13271445,131.13,131.09,8.34137822]
[1767379281246,5.6301312,131.12,131.09,8.34137822]
[1767379281430,5.6301312,131.11,131.09,8.34137822]
[1767379281630,0.69746131,131.13,131.09,8.34137822]
[1767379281832,5.63412082,131.12,131.09,8.34137822]
[1767379282034,5.63412082,131.11,131.09,8.34137822]
[1767379282236,0.69746131,131.13,131.09,8.34137822]
[1767379282433,10.70743392,131.12,131.09,8.34137822]
[1767379282628,5.63407502,131.11,131.09,8.34137822]
[1767379282953,0.68532278,131.12,131.09,8.34137822]
[1767379283149,5.63726478,131.11,131.09,8.34137822]
[1767379283341,5.64174198,131.1,131.09,8.34137822]
[1767379286057,0.68532278,131.12,131.09,8.34137822]
[1767379286735,0.69758516,131.13,131.09,8.34137822]
[1767379286936,5.08729831,131.12,131.09,8.34137822]
[1767379287239,5.08729831,131.11,131.09,8.34137822]
[1767379287444,0.69758516,131.13,131.09,8.34137822]
[1767379287758,5.77781815,131.12,131.09,8.34137822]
[1767379287963,5.09261798,131.11,131.09,8.34137822]
[1767379290058,5.09261798,131.11,131.1,0.67363603]
[1767379290264,5.09261798,131.11,131.1,8.30140109]
[1767379290460,5.09261798,131.12,131.1,8.30140109]
[1767379290641,5.09261798,131.11,131.1,8.30140109]
[1767379291238,5.09261798,131.11,131.09,8.30198296]
[1767379291437,0.70692194,131.13,131.09,8.30198296]
[1767379291678,5.10655024,131.12,131.09,8.30198296]
[1767379291850,0.70692194,131.13,131.1,0.67363603]
[1767379292042,11.43951538,131.15,131.11,0.67363603]
[1767379292043,0.70692194,131.14,131.11,0.67363603]
[1767379295161,0.70692194,131.14,131.1,8.30114051]
[1767379297348,0.70692194,131.14,131.11,8.30080247]
[1767379298678,0.70692194,131.14,131.11,0.67363603]
[1767379299384,0.67595676,131.13,131.09,7.62810804]
[1767379299672,0.7063088,131.1,131.07,7.6291763]
[1767379300050,0.7063088,131.1,131.08,7.62886209]
[1767379300643,0.67656377,131.09,131.05,0.67363603]
[1767379300880,0.67656377,131.09,131.05,8.30377147]
[1767379301078,0.67656377,131.09,131.06,8.30365362]
[1767379301755,0.67656377,131.09,131.05,7.63041355]
[1767379301951,0.70601135,131.08,131.04,0.67363603]
[1767379302245,0.67685824,131.07,131.03,22.32512225]
[1767379302447,0.67685824,131.07,131.03,0.77363603]
[1767379302653,0.67714686,131.05,131.03,0.1]
[1767379302847,0.70692194,131.06,131.03,0.1]
[1767379303062,4.52128965,131.06,131.03,0.1]
[1767379303860,5.10553775,131.05,131.03,0.1]
[1767379304191,0.70692194,131.07,131.03,0.77363603]
[1767379304370,4.52128965,131.07,131.03,0.77363603]
[1767379304685,0.67595676,131.06,131.03,0.77363603]
[1767379305554,0.67595676,131.06,131.03,8.40536968]
[1767379305973,0.67595676,131.06,131.03,0.77363603]
[1767379307781,0.67595676,131.06,131.03,8.40547396]
[1767379308289,4.49032447,131.06,131.03,0.77363603]
[1767379308784,0.70692194,131.07,131.04,0.67363603]
[1767379308986,0.70692194,131.07,131.03,8.40533648]
[1767379309873,4.49032447,131.06,131.03,8.40533648]
[1767379310579,0.67595676,131.06,131.03,8.40533648]
[1767379310886,4.49032447,131.07,131.04,0.67363603]
[1767379311090,7.62860533,131.09,131.04,0.67363603]
[1767379311388,3.81436771,131.11,131.07,0.67363603]
[1767379311573,3.81436771,131.12,131.07,0.67363603]
[1767379312086,3.81436771,131.11,131.08,8.30256492]
[1767379312272,21.54612021,131.13,131.08,0.67363603]
[1767379312464,3.81436771,131.11,131.08,0.67363603]
[1767379312771,3.81436771,131.11,131.07,0.67363603]
[1767379312976,3.81436771,131.09,131.06,7.62989613]
[1767379313166,3.81436771,131.09,131.06,8.30353216]
[1767379313584,4.4281175,131.11,131.07,8.30308667]
[1767379313786,7.62612021,131.13,131.08,0.67363603]
[1767379313787,0.61374979,131.12,131.08,0.67363603]
[1767379313989,3.81436771,131.11,131.08,0.67363603]
[1767379314216,3.81436771,131.11,131.08,8.30252893]
[1767379314396,3.91336771,131.11,131.08,7.6288929]
[1767379314794,4.42297,131.1,131.07,8.30290676]
[1767379315592,0.61374979,131.11,131.07,8.30290676]
[1767379315795,4.4281175,131.11,131.07,8.30290676]
[1767379316199,3.81436771,131.1,131.07,8.30290676]
[1767379318896,3.81436771,131.1,131.08,0.67363603]
[1767379319103,3.81436771,131.12,131.08,0.67363603]
[1767379319301,3.91336771,131.12,131.08,0.67363603]
[1767379319489,0.099,131.12,131.08,0.67363603]
[1767379319797,4.4281175,131.15,131.1,0.71197921]
[1767379320183,3.81436771,131.15,131.11,0.71197921]
[1767379320498,4.4281175,131.16,131.11,0.71197921]
[1767379320689,14.58545941,131.15,131.11,0.71197921]
[1767379321003,14.58545941,131.15,131.11,8.33864916]
[1767379321004,3.81436771,131.15,131.11,8.33864916]
[1767379321502,3.81436771,131.15,131.12,0.71197921]
[1767379323277,0.61374979,131.16,131.12,8.33832852]
[1767379323278,4.4281175,131.16,131.12,8.33832852]
[1767379324489,3.81436771,131.18,131.14,0.71197921]
[1767379324800,0.099,131.19,131.15,0.71197921]
[1767379325000,9.01431179,131.19,131.15,0.71197921]
[1767379325192,5.10094408,131.18,131.15,0.71197921]
[1767379325795,9.52391408,131.18,131.13,0.71197921]
[1767379325989,4.42297,131.18,131.14,0.71197921]
[1767379326603,4.42297,131.18,131.14,8.33684226]
[1767379327012,4.4281175,131.19,131.15,0.71197921]
[1767379327197,5.09675807,131.18,131.15,0.71197921]
[1767379327385,4.4281175,131.19,131.15,0.71197921]
[1767379328210,3.81436771,131.18,131.15,0.71197921]
[1767379328407,3.81436771,131.18,131.15,8.33667674]
[1767379328795,0.60860229,131.17,131.15,7.62469753]
[1767379329515,0.60860229,131.17,131.14,26.68903461]
[1767379329699,4.42297,131.17,131.14,7.62543846]
[1767379329897,0.60860229,131.17,131.14,7.62543846]
[1767379330108,4.42297,131.17,131.14,7.62543846]
[1767379330305,0.60860229,131.17,131.14,7.62543846]
[1767379331597,3.81436771,131.21,131.16,0.71197921]
[1767379331803,3.81436771,131.21,131.17,0.71197921]
[1767379332110,4.4281175,131.21,131.17,0.71197921]
[1767379333397,4.4281175,131.21,131.17,8.33554369]
[1767379334318,7.62087459,131.22,131.18,0.71197921]
[1767379334319,4.4281175,131.22,131.18,0.71197921]
[1767379334895,0.61374979,131.22,131.18,0.71197921]
[1767379335090,4.4281175,131.22,131.18,0.71197921]
[1767379335497,0.61374979,131.22,131.18,8.33459574]
[1767379335710,4.4281175,131.22,131.18,8.33459574]
[1767379336024,4.4281175,131.22,131.19,0.71197921]
[1767379336218,0.61374979,131.23,131.19,0.71197921]
[1767379336524,4.4281175,131.23,131.19,0.71197921]
[1767379336900,0.61374979,131.23,131.19,8.33423397]
[1767379337206,4.4281175,131.23,131.19,8.33423397]
[1767379338609,0.61374979,131.23,131.19,8.33423397]
[1767379338936,4.4281175,131.23,131.19,8.33423397]
[1767379339152,3.81436771,131.23,131.2,0.71197921]
[1767379340028,3.91336771,131.23,131.2,0.71197921]
[1767379340396,3.91336771,131.23,131.19,0.71197921]
[1767379341911,3.91336771,131.23,131.19,8.33413245]
[1767379344029,0.099,131.23,131.19,8.33413245]
[1767379344328,0.10909063,131.19,131.15,0.71197921]
[1767379344541,0.11398585,131.17,131.14,7.62522045]
[1767379344744,0.11398585,131.17,131.13,0.71197921]
[1767379344745,2.55311645,131.17,131.13,8.33763263]
[1767379345406,2.55791425,131.15,131.12,7.62645415]
[1767379345603,2.55791425,131.15,131.12,8.33843336]
[1767379345911,2.56261658,131.15,131.12,0.71197921]
[1767379346237,2.56261658,131.15,131.11,8.33900206]
[1767379346417,0.12348598,131.15,131.12,0.71197921]
[1767379346602,7.62392975,131.17,131.12,0.71197921]
[1767379346603,0.61374979,131.17,131.12,0.71197921]
[1767379346927,2.4391306,131.16,131.12,0.71197921]
[1767379347127,2.5381306,131.15,131.12,0.71197921]
[1767379347426,2.4391306,131.15,131.12,0.71197921]
[1767379348329,2.5381306,131.15,131.12,0.69297167]
[1767379348508,2.4391306,131.15,131.12,0.69297167]
[1767379349104,2.5381306,131.16,131.12,0.69297167]
[1767379349620,2.5381306,131.16,131.11,7.62702285]
[1767379349621,3.04773289,131.15,131.11,7.62702285]
[1767379349819,0.61374979,131.16,131.12,0.68386726]
[1767379350027,3.05288039,131.16,131.12,0.68386726]
[1767379350227,2.4391306,131.15,131.12,0.68386726]
[1767379350539,3.05288039,131.16,131.12,8.31040161]
[1767379351214,2.4391306,131.15,131.12,8.31040161]
[1767379351845,2.54322662,131.13,131.09,0.68386726]
[1767379352141,2.4391306,131.11,131.1,0.68386726]
[1767379352627,2.4391306,131.11,131.08,8.31253148]
[1767379352935,2.4391306,131.09,131.08,0.68386726]
[1767379353123,2.4391306,131.09,131.06,8.31373091]
[1767379353315,2.4391306,131.08,131.06,7.62986365]
[1767379353514,2.4391306,131.08,131.05,14.60386726]
[1767379353515,2.4391306,131.11,131.08,0.68386726]
[1767379353826,2.4391306,131.1,131.07,8.3133782]
[1767379354126,7.72519472,131.13,131.09,0.68386726]
[1767379354331,2.4391306,131.11,131.08,8.31279615]
[1767379354641,2.4391306,131.09,131.07,7.62931615]
[1767379354844,2.4391306,131.1,131.07,7.5997624]
[1767379356113,2.4391306,131.1,131.07,0.68386726]
[1767379356745,2.4391306,131.08,131.07,0.68386726]
[1767379357038,2.4391306,131.09,131.07,0.68386726]
[1767379360345,2.54322662,131.09,131.05,0.68386726]
[1767379361834,0.099,131.12,131.08,0.68386726]
[1767379362031,2.4391306,131.09,131.07,0.68386726]
[1767379362339,2.4391306,131.08,131.05,0.68386726]
[1767379362536,2.4391306,131.07,131.05,0.68386726]
[1767379362931,2.4391306,131.06,131.04,8.31511397]
[1767379364250,2.4391306,131.07,131.04,8.31511397]
[1767379364426,2.4391306,131.06,131.04,8.31511397]
[1767379365146,2.4391306,131.07,131.04,8.31511397]
[1767379367647,0.10909063,131.08,131.04,8.31511397]
[1767379367849,2.4391306,131.09,131.06,0.68386726]
[1767379368142,2.4391306,131.1,131.06,0.68386726]
[1767379368347,3.05288039,131.11,131.06,0.68386726]
[1767379369644,0.099,131.1,131.06,0.68386726]
[1767379369841,0.099,131.1,131.06,8.3137035]
[1767379369842,2.5381306,131.1,131.06,8.3137035]
[1767379373434,0.099,131.1,131.06,8.3137035]
[1767379373733,2.5381306,131.1,131.06,8.3137035]
[1767379376545,0.69822683,131.12,131.07,0.68386726]
[1767379376854,0.69822683,131.1,131.07,0.68386726]
[1767379377354,3.13735743,131.1,131.07,0.68386726]
[1767379378035,3.13735743,131.1,131.07,8.31313803]
[1767379378362,0.69822683,131.09,131.06,7.62988669]
[1767379379062,3.13735743,131.09,131.06,7.62988669]
[1767379380247,3.13735743,131.09,131.06,0.6766053]
[1767379381359,0.7184116,131.11,131.06,27.38149732]
[1767379381560,3.1575422,131.11,131.07,0.6766053]
[1767379381742,0.7184116,131.12,131.08,0.6766053]
[1767379381942,0.7184116,131.1,131.07,0.6766053]
[1767379382149,3.1575422,131.1,131.06,27.38149732]
[1767379382350,1.79598805,131.1,131.07,0.6766053]
[1767379383049,1.79598805,131.1,131.07,8.30579479]
[1767379383473,2.4391306,131.11,131.07,8.30579479]
[1767379383970,2.4391306,131.11,131.07,7.62918949]
[1767379384466,0.7184116,131.1,131.07,7.62918949]
[1767379385264,0.7184116,131.1,131.07,8.30579479]
[1767379386070,0.7184116,131.11,131.07,8.30579479]
[1767379386275,0.7184116,131.11,131.07,27.37957216]
[1767379386445,0.7184116,131.11,131.08,0.6766053]
[1767379386869,3.1575422,131.11,131.07,0.6766053]
[1767379388075,3.1575422,131.11,131.08,7.62892889]
[1767379392369,5.10743103,131.1,131.08,7.62892889]
[1767379392574,3.1575422,131.11,131.08,7.62892889]
[1767379393173,0.7184116,131.11,131.08,0.6766053]
[1767379393373,0.7184116,131.14,131.09,0.6766053]
[1767379393582,0.7184116,131.14,131.1,0.6766053]
[1767379393583,5.67688979,131.13,131.1,0.6766053]
[1767379393763,0.7184116,131.14,131.1,0.6766053]
[1767379393956,5.67733099,131.13,131.1,0.6766053]
[1767379394150,0.7184116,131.14,131.1,0.6766053]
[1767379394356,5.67828288,131.13,131.1,0.6766053]
[1767379394567,3.1575422,131.14,131.1,0.6766053]
[1767379394774,5.67827664,131.13,131.1,0.6766053]
[1767379394979,3.1575422,131.14,131.1,0.6766053]
[1767379395157,5.67833825,131.13,131.1,0.6766053]
[1767379395484,0.7184116,131.14,131.11,8.30378858]
[1767379395676,3.1575422,131.15,131.11,27.37174678]
[1767379395872,5.67921755,131.14,131.11,27.37174678]
[1767379396061,3.1575422,131.15,131.11,27.37174678]
[1767379396384,5.67915667,131.14,131.11,27.37174678]
[1767379396579,3.1575422,131.15,131.11,27.37174678]
[1767379396880,8.83749713,131.14,131.11,27.37174678]
[1767379397072,3.1575422,131.14,131.11,27.37174678]
[1767379398582,3.1575422,131.15,131.12,0.6766053]
[1767379399372,3.1575422,131.15,131.12,8.30287062]
[1767379399559,0.7184116,131.15,131.12,8.30287062]
[1767379400782,3.1575422,131.15,131.12,8.30287062]
[1767379402058,0.7184116,131.15,131.12,8.30287062]
[1767379406181,0.7184116,131.15,131.12,7.62626532]
[1767379406390,3.1575422,131.16,131.13,0.6766053]
[1767379406573,4.53077003,131.16,131.13,0.6766053]
[1767379407588,0.6779224,131.17,131.14,0.68730305]
[1767379407771,4.49028083,131.17,131.14,0.68730305]
[1767379409266,4.53342925,131.16,131.13,0.72276405]
[1767379409487,4.53342925,131.14,131.12,7.62660158]
[1767379409682,3.81235843,131.14,131.12,7.62660158]
[1767379409880,0.71702469,131.15,131.12,8.34936563]
[1767379410086,4.52938312,131.15,131.12,8.34936563]
[1767379411179,3.81235843,131.14,131.12,8.34936563]
[1767379412294,4.53338879,131.14,131.1,19.79109007]
[1767379412594,0.72095183,131.1,131.08,7.62874381]
[1767379412890,4.52950092,131.09,131.07,7.62932147]
[1767379413091,0.71714249,131.09,131.07,7.62932147]
[1767379413270,0.71714249,131.09,131.06,19.79728716]
[1767379413895,4.53342925,131.1,131.06,19.79728716]
[1767379414101,4.53342925,131.1,131.07,8.35227499]
[1767379415294,3.81235843,131.09,131.07,8.35227499]
[1767379418701,0.72107082,131.1,131.06,8.35263588]
[1767379418892,3.81235843,131.08,131.06,8.35263588]
[1767379419193,0.71706475,131.07,131.04,8.35369957]
[1767379419498,3.81235843,131.06,131.04,8.3539837]
[1767379420385,3.81235843,131.07,131.04,8.3539837]
[1767379420868,0.72103036,131.06,131.04,7.63121965]
[1767379421279,21.54793149,131.1,131.04,8.3539837]
[1767379421475,3.81235843,131.08,131.04,8.3539837]
[1767379421676,3.81235843,131.07,131.04,8.3539837]
[1767379421875,3.81235843,131.07,131.04,7.63121965]
[1767379422988,3.81235843,131.07,131.04,0.72276405]
[1767379423173,3.81235843,131.08,131.04,0.72276405]
[1767379423375,4.43666626,131.08,131.04,0.72276405]
[1767379424800,0.62430783,131.08,131.05,7.63067531]
[1767379425101,4.43666626,131.08,131.05,7.63067531]
[1767379426189,3.81235843,131.08,131.05,0.72276405]
[1767379427003,4.43141318,131.08,131.05,0.72276405]
[1767379427306,4.43141318,131.08,131.05,8.35311578]
[1767379429607,3.81235843,131.08,131.05,8.35311578]
[1767379430796,3.81235843,131.07,131.04,8.35364966]
[1767379431002,3.81235843,131.06,131.04,8.35364966]
[1767379431306,3.81235843,131.06,131.04,0.72276405]
[1767379431519,3.81235843,131.06,131.03,0.1]
[1767379431520,3.81235843,131.07,131.05,8.35343936]
[1767379432588,3.81235843,131.07,131.05,7.63067531]
[1767379432799,8.25272999,131.09,131.05,8.35343936]
[1767379433109,3.81235843,131.08,131.05,8.35343936]
[1767379433288,3.81235843,131.07,131.05,8.35343936]
[1767379433489,3.81235843,131.07,131.06,0.72276405]
[1767379433711,3.81235843,131.07,131.05,8.35343936]
[1767379433884,22.17232121,131.1,131.06,0.72276405]
[1767379434091,3.81235843,131.08,131.06,0.72276405]
[1767379436312,3.81235843,131.07,131.06,0.72276405]
[1767379437502,3.81235843,131.07,131.05,7.63067531]
[1767379437702,3.91655897,131.07,131.05,7.63067531]
[1767379438590,3.81235843,131.07,131.06,8.35285713]
[1767379438785,14.54430783,131.1,131.06,8.35285713]
[1767379439011,3.81235843,131.08,131.06,8.35285713]
[1767379440316,3.81235843,131.09,131.07,0.72225531]
[1767379440498,0.6682587,131.13,131.07,0.72225531]
[1767379440694,3.81235843,131.13,131.08,0.72225531]
[1767379440921,4.48061713,131.13,131.08,0.72225531]
[1767379441718,4.48061713,131.13,131.1,0.72225531]
[1767379442017,3.81235843,131.13,131.1,0.72225531]
[1767379442393,21.54497437,131.15,131.11,0.72225531]
[1767379442394,3.81235843,131.15,131.11,0.72225531]
[1767379443217,4.48061713,131.16,131.11,0.72225531]
[1767379443399,4.48061713,131.16,131.12,7.62660158]
[1767379443606,4.48061713,131.16,131.13,0.72225531]
[1767379444922,21.54321671,131.18,131.1,17.73235843]
[1767379444923,0.6682587,131.14,131.11,8.34943859]
[1767379445117,3.81235843,131.15,131.11,8.34943859]
[1767379446916,3.81235843,131.14,131.11,7.62718328]
[1767379447220,0.6682587,131.13,131.11,7.62718328]
[1767379449413,4.48061713,131.14,131.11,7.62718328]
[1767379450096,0.6682587,131.14,131.11,7.62718328]
[1767379450303,4.48061713,131.14,131.11,7.62718328]
[1767379451119,0.6682587,131.14,131.11,7.62718328]
[1767379452219,0.6682587,131.17,131.13,0.72225531]
[1767379452423,0.6682587,131.15,131.11,27.41739679]
[1767379452621,0.6682587,131.15,131.12,0.72225531]
[1767379453424,0.6682587,131.15,131.13,7.62601998]
[1767379453818,0.6682587,131.16,131.13,7.62601998]
[1767379455333,0.6682587,131.13,131.06,0.72225531]
[1767379455504,0.6682587,131.13,131.07,19.79503023]
[1767379455705,4.48061713,131.11,131.08,7.62860082]
[1767379455915,4.48061713,131.11,131.09,7.62794444]
[1767379456113,0.6682587,131.13,131.1,0.72225531]
[1767379456427,0.6682587,131.13,131.1,8.34982411]
[1767379462537,0.6682587,131.14,131.1,8.34982411]
[1767379462833,4.48061713,131.15,131.11,0.72225531]
[1767379463030,0.6682587,131.15,131.11,0.72225531]
[1767379464217,0.6682587,131.15,131.11,8.34906976]
[1767379465424,0.6682587,131.16,131.12,0.72225531]
[1767379466325,0.6682587,131.16,131.13,7.62601998]
[1767379466921,4.48061713,131.16,131.13,7.62601998]
[1767379467326,4.48061713,131.16,131.12,8.34864996]
[1767379467522,0.70109745,131.15,131.12,7.62639465]
[1767379467829,0.70109745,131.15,131.12,8.29866312]
[1767379468430,4.51345588,131.15,131.12,8.29881045]